bitfinex-derivatives/quotes_ETHF0:USTF0_20250410
["timestamp","ask_amount","ask_price","bid_price","bid_amount"]
[1744309138767,1.32218,1513.6,1513.3,6.63490851]
[1744309138965,1.32218,1513.6,1513.5,1.3222]
[1744309139364,2.1991,1513.7,1513.5,1.3222]
[1744309139569,2.1991,1513.7,1513.4,3.53312]
[1744309139766,1.32216,1513.6,1513.4,3.53312]
[1744309139970,1.3222,1513.5,1513.4,3.53312]
[1744309140172,1.32216,1513.6,1513.5,1.32218]
[1744309140369,1.3222,1513.5,1513.4,3.53312]
[1744309140672,3.52116,1513.7,1513.3,6.62159851]
[1744309140863,1.32213,1513.6,1513.3,8.78769851]
[1744309141060,1.32213,1513.6,1513.5,1.3222]
[1744309141266,1.3222,1513.5,1513.4,3.48832]
[1744309141470,2.1991,1513.7,1513.4,2.1661]
[1744309141768,1.32229,1513.5,1513.4,1.32227]
[1744309141969,1.32229,1513.4,1513.3,1.33222851]
[1744309142774,3.36787,1513.5,1513.4,1.32229]
[1744309142969,1.32229,1513.4,1513.3,0.00990851]
[1744309143164,3.36789,1513.5,1513.3,2.12820851]
[1744309143560,3.36789,1513.5,1513.4,1.32229]
[1744309144075,1.32202,1513.8,1513.7,1.32203]
[1744309144372,1.32193,1513.9,1513.8,1.32191]
[1744309144570,3.30486,1513.8,1513.3,0.00990851]
[1744309144768,1.32229,1513.4,1513.3,0.00990851]
[1744309145273,3.48549,1513.4,1513.3,0.00990851]
[1744309145474,3.48549,1513.4,1512.9,1.32264]
[1744309145475,3.30604,1513.3,1512.9,1.32264]
[1744309145774,2.2077,1513.2,1513.1,1.32255]
[1744309146166,3.53016,1513.2,1513.1,1.32255]
[1744309147175,1.32255,1513.1,1513.0,3.52876851]
[1744309147475,2.2077,1513.2,1513.0,3.52878851]
[1744309147676,1.32255,1513.1,1513.0,3.52878851]
[1744309148272,1.32255,1513.1,1513.0,3.52879851]
[1744309148472,1.32255,1513.1,1513.0,0.00990851]
[1744309150471,6.32255,1513.1,1513.0,0.00990851]
[1744309150668,1.32255,1513.1,1513.0,0.00990851]
[1744309150978,1.32299,1512.6,1512.5,4.2595]
[1744309151274,1.32297,1512.7,1512.6,1.32296]
[1744309151475,2.1446,1513.0,1512.4,4.1442]
[1744309151771,1.32308,1512.5,1512.4,1.32308]
[1744309151973,1.32305,1512.6,1512.5,1.32305]
[1744309152175,3.30723,1512.8,1512.6,1.32299]
[1744309152176,1.32293,1512.7,1512.6,1.32299]
[1744309152376,1.32293,1512.7,1512.6,3.46869]
[1744309153271,2.0016,1512.8,1512.5,3.2078]
[1744309153272,1.32299,1512.6,1512.5,3.2078]
[1744309153576,1.32299,1512.6,1512.5,4.53088]
[1744309154178,1.32275,1512.9,1512.8,1.32273]
[1744309154367,0.00990851,1513.3,1512.8,3.30704]
[1744309154678,1.32264,1513.0,1512.9,3.46837]
[1744309154876,1.32264,1513.0,1512.9,2.1457]
[1744309155081,1.32264,1513.0,1512.9,3.46843]
[1744309155277,2.116,1513.1,1513.0,1.32264]
[1744309155481,3.43855,1513.1,1513.0,3.38024]
[1744309155782,0.00990851,1513.3,1513.1,1.3225]
[1744309155976,1.32249,1513.2,1513.1,2.0576]
[1744309156175,2.12590851,1513.3,1513.2,1.32246]
[1744309156481,11.18817533,1513.3,1513.2,1.32246]
[1744309156669,1.32246,1513.2,1513.1,3.38999851]
[1744309156874,11.18817533,1513.3,1513.2,1.32246]
[1744309157080,11.18817533,1513.3,1513.2,3.38006]
[1744309157277,7.74973533,1513.3,1513.2,3.38006]
[1744309160381,7.74973533,1513.3,1513.2,8.38006]
[1744309161082,7.74973533,1513.3,1513.2,3.38006]
[1744309161785,2.08900851,1513.3,1513.2,3.38006]
[1744309161979,3.41138851,1513.3,1513.2,2.0576]
[1744309162281,1.32246,1513.2,1513.1,0.00990851]
[1744309162479,2.0791,1513.2,1513.1,1.33245851]
[1744309162674,3.40156,1513.2,1513.1,1.33245851]
[1744309162879,2.0791,1513.2,1513.1,1.33245851]
[1744309163087,2.0791,1513.2,1513.1,3.38015851]
[1744309163584,0.00990851,1513.3,1513.1,2.05760851]
[1744309163886,0.00990851,1513.3,1513.2,4.53026]
[1744309164189,0.00990851,1513.3,1513.2,15.35036]
[1744309166384,0.00990851,1513.3,1513.2,8.73736]
[1744309166688,0.00990851,1513.3,1513.1,3.38015851]
[1744309166689,1.32246,1513.2,1513.1,3.38015851]
[1744309166877,1.32246,1513.2,1513.1,0.00990851]
[1744309167076,2.1123,1513.2,1513.1,1.33245851]
[1744309167287,5.67358851,1513.3,1513.2,1.32246]
[1744309167488,5.67358851,1513.3,1513.2,3.41606]
[1744309167881,0.00990851,1513.3,1513.2,3.41606]
[1744309168188,0.00990851,1513.3,1513.2,6.62386]
[1744309169291,0.00990851,1513.3,1513.2,3.41606]
[1744309169491,1.33228851,1513.3,1513.2,3.41606]
[1744309169790,0.00990851,1513.3,1513.2,3.41606]
[1744309170083,0.00990851,1513.3,1513.2,6.62386]
[1744309170289,8.51e-06,1513.3,1513.2,18.23686]
[1744309171390,8.51e-06,1513.3,1513.2,13.23686]
[1744309172390,8.51e-06,1513.3,1513.2,18.23686]
[1744309173689,7.73982682,1513.9,1513.8,1.32194]
[1744309174191,6.1642,1514.0,1513.7,5.3475]
[1744309174389,2.1084,1513.9,1513.8,4.52971]
[1744309174685,6.60693,1514.5,1514.1,1.32163]
[1744309174888,2.1084,1514.2,1514.1,1.32163]
[1744309175091,2.1084,1514.2,1514.1,1.33153851]
[1744309175282,8.42999,1514.2,1514.1,0.00990851]
[1744309175680,11.63779,1514.2,1514.1,0.00990851]
[1744309175885,10.3162,1514.2,1513.6,8.1317]
[1744309176084,3.30464,1513.9,1513.5,1.32214]
[1744309176287,7.53377,1513.8,1513.4,5.3137]
[1744309176481,1.3222,1513.5,1513.4,3.42817]
[1744309176694,1.32233,1513.4,1513.3,1.32236]
[1744309176890,5.339,1513.8,1513.3,3.2078]
[1744309177190,3.41989,1513.6,1513.4,2.1059]
[1744309177392,1.32224,1513.5,1513.2,0.00990851]
[1744309177582,0.00990851,1513.7,1513.6,1.32211]
[1744309178199,2.10760851,1513.7,1513.6,1.32211]
[1744309178490,3.42963851,1513.7,1513.6,1.32211]
[1744309178689,2.10760851,1513.7,1513.6,1.32211]
[1744309178998,3.42963851,1513.7,1513.6,1.32211]
[1744309179289,0.00990851,1513.7,1513.6,1.32211]
[1744309179683,0.00990851,1513.7,1513.6,12.92011]
[1744309179882,2.1122,1514.1,1514.0,1.32177]
[1744309180087,1.9982,1514.3,1514.2,1.32159]
[1744309180285,4.1104,1514.3,1514.2,1.32159]
[1744309180795,1.9982,1514.3,1514.2,4.52939]
[1744309180994,2.0239,1514.5,1514.4,1.32142]
[1744309181195,4.1361,1514.5,1514.4,1.32142]
[1744309181398,2.0239,1514.5,1514.4,4.52922]
[1744309181595,3.44336851,1514.6,1514.4,3.2078]
[1744309181800,2.12210851,1514.6,1514.5,3.44373]
[1744309182593,0.00990851,1514.6,1514.5,3.44373]
[1744309183499,1.33114851,1514.6,1514.5,2.1224]
[1744309183695,2.12280851,1514.6,1514.2,3.2078]
[1744309183998,3.30336,1514.5,1514.1,1.33156851]
[1744309184197,1.32159,1514.2,1514.1,0.00990851]
[1744309184597,3.43447,1514.3,1514.1,1.33158851]
[1744309184794,2.1129,1514.2,1514.1,1.33158851]
[1744309184990,3.43449,1514.2,1514.1,2.08260851]
[1744309185299,3.43449,1514.2,1514.1,0.00990851]
[1744309185799,8.43449,1514.2,1514.1,0.00990851]
[1744309185994,10.52259,1514.2,1514.1,0.00990851]
[1744309186699,5.52259,1514.2,1514.1,0.00990851]
[1744309187206,10.52259,1514.2,1514.1,0.00990851]
[1744309187596,1.32194,1513.8,1513.7,1.32199]
[1744309187793,1.32193,1513.9,1513.8,1.32192]
[1744309187993,1.32198,1513.8,1513.7,1.32197]
[1744309188294,7.36056,1513.9,1513.4,3.2078]
[1744309188489,1.32216,1513.6,1513.5,1.32216]
[1744309188903,1.3222,1513.5,1513.4,1.33219851]
[1744309189200,5.3312,1513.5,1513.4,0.00990851]
[1744309190896,7.3693,1513.5,1513.4,0.00990851]
[1744309191996,12.3693,1513.5,1513.4,0.00990851]
[1744309192195,1.32246,1513.2,1513.1,10.12035217]
[1744309192801,3.31166,1513.2,1513.1,10.12035217]
[1744309193205,11.51946,1513.2,1513.1,10.12035217]
[1744309193394,1.32255,1513.1,1513.0,0.00990851]
[1744309193601,5.41975,1513.1,1513.0,0.00990851]
[1744309194405,10.41975,1513.1,1513.0,8.51e-06]
[1744309194602,1.32299,1512.6,1512.5,3.2078]
[1744309194802,1.32308,1512.5,1512.4,10.12035217]
[1744309195310,4.53088,1512.5,1512.4,10.12035217]
[1744309195814,6.65018,1512.5,1512.4,10.12035217]
[1744309197604,13.68978,1512.5,1512.4,10.12035217]
[1744309199114,1.32316,1512.4,1512.3,0.00990851]
[1744309199504,3.32076,1512.4,1512.3,0.00990851]
[1744309199714,3.32076,1512.4,1512.3,3.21770851]
[1744309199909,2.14300851,1512.6,1512.3,8.21770851]
[1744309200107,0.00990851,1512.6,1512.5,1.32308]
[1744309200612,0.00990851,1512.6,1512.5,9.53088]
[1744309201015,0.00990851,1512.6,1512.5,11.48508]
[1744309201207,0.00990851,1512.6,1512.5,13.54508]
[1744309201412,8.51e-06,1512.6,1512.5,19.53708]
[1744309202613,8.51e-06,1512.6,1512.5,13.54508]
[1744309203119,8.51e-06,1512.6,1512.5,26.12208]
[1744309203717,1.32248,1513.2,1513.1,1.32253]
[1744309203916,1.32248,1513.2,1513.0,5.1881]
[1744309204118,1.32245,1513.3,1513.1,1.32253]
[1744309204317,1.32245,1513.3,1513.2,1.9803]
[1744309204817,2.03910851,1513.4,1513.2,3.30272]
[1744309205023,2.03910851,1513.4,1513.2,3.30275]
[1744309205221,0.00990851,1513.4,1513.3,1.32238]
[1744309205618,1.33223851,1513.4,1513.3,1.32238]
[1744309205916,0.00990851,1513.4,1513.2,6.5105]
[1744309206118,1.32238,1513.3,1513.2,1.9803]
[1744309206312,1.32246,1513.2,1513.1,0.00990851]
[1744309206816,4.1663,1513.3,1513.1,0.00990851]
[1744309206817,6.56324,1513.3,1513.1,0.00990851]
[1744309207017,0.00990851,1513.4,1513.2,1.32239]
[1744309207218,0.00990851,1513.4,1513.3,1.32238]
[1744309207715,0.00990851,1513.4,1513.3,8.33388]
[1744309208925,0.00990851,1513.4,1513.3,10.39788]
[1744309209128,16.27049278,1514.1,1513.8,1.32194]
[1744309209322,18.33719278,1514.1,1513.5,3.2078]
[1744309209522,1.32205,1513.7,1513.4,5.992]
[1744309209827,1.32205,1513.7,1513.6,1.32211]
[1744309210022,1.32197,1513.8,1513.7,1.32199]
[1744309210219,1.32189,1513.9,1513.8,1.32194]
[1744309210419,1.32194,1513.8,1513.7,1.32195]
[1744309210627,1.33182851,1513.9,1513.7,1.32195]
[1744309210823,0.00990851,1513.9,1513.8,1.32194]
[1744309211831,5.00990851,1513.9,1513.3,7.2833]
[1744309212121,5.00990851,1513.9,1513.2,9.29813]
[1744309212122,1.32235,1513.4,1513.2,7.3144]
[1744309212325,1.32218,1513.6,1513.4,1.32222]
[1744309212525,1.3222,1513.5,1513.4,1.32222]
[1744309212726,2.0038,1513.6,1513.2,3.30615]
[1744309212934,3.36510851,1513.9,1513.5,3.2078]
[1744309213133,0.00990851,1513.9,1513.8,1.32194]
[1744309213335,1.32194,1513.8,1513.7,1.322]
[1744309213540,0.00990851,1513.9,1513.5,3.2078]
[1744309213741,1.32203,1513.7,1513.6,1.32203]
[1744309214231,1.9611,1513.8,1513.5,1.32217]
[1744309214433,1.3221,1513.7,1513.6,1.32211]
[1744309214632,1.32214,1513.6,1513.5,1.32215]
[1744309214832,1.9611,1513.8,1513.4,8.58931]
[1744309215141,1.33181851,1513.9,1513.8,1.32194]
[1744309215343,1.32201,1513.8,1513.7,1.32199]
[1744309215842,3.30508,1513.7,1513.4,5.992]
[1744309216039,1.32218,1513.6,1513.5,1.32214]
[1744309216235,6.51277,1513.8,1513.5,1.32214]
[1744309216236,0.00990851,1513.9,1513.5,6.51326]
[1744309216436,5.43025851,1513.9,1513.5,6.51326]
[1744309216735,1.32206,1513.7,1513.6,1.32202]
[1744309217035,1.322,1513.8,1513.7,1.32197]
[1744309217333,1.32201,1513.8,1513.7,1.322]
[1744309217534,2.12560851,1513.9,1513.5,6.51328]
[1744309217737,1.32196,1513.8,1513.7,1.32196]
[1744309218543,1.3221,1513.7,1513.6,1.32207]
[1744309218740,2.12560851,1513.9,1513.6,3.30527]
[1744309219044,2.12560851,1513.9,1513.8,1.32194]
[1744309219045,1.33175851,1513.9,1513.8,1.32194]
[1744309219237,1.32194,1513.8,1513.7,1.32196]
[1744309219736,1.32208,1513.7,1513.6,1.32205]
[1744309219941,1.322,1513.8,1513.7,1.32196]
[1744309220137,1.32208,1513.7,1513.6,1.32204]
[1744309220334,0.00990851,1513.9,1513.8,1.32194]
[1744309220936,0.00990851,1513.9,1513.8,6.32194]
[1744309221145,8.5e-06,1513.9,1513.8,8.41484]
[1744309221644,8.5e-06,1513.9,1513.8,8.9508228]
[1744309223548,8.5e-06,1513.9,1513.8,8.41484]
[1744309223948,8.5e-06,1513.9,1513.8,3.41484]
[1744309224139,8.5e-06,1513.9,1513.8,1.32194]
[1744309224340,1.3218585,1513.9,1513.8,1.32194]
[1744309224535,1.3218585,1513.9,1513.8,1.975]
[1744309224742,8.5e-06,1513.9,1513.8,3.29694]
[1744309225242,8.5e-06,1513.9,1513.8,8.29694]
[1744309225443,8.5e-06,1513.9,1513.8,16.26904]
[1744309225641,8.5e-06,1513.9,1513.8,11.26904]
[1744309226551,1.3218585,1513.9,1513.8,1.32194]
[1744309226953,8.5e-06,1513.9,1513.8,1.32194]
[1744309227153,3.4726585,1513.9,1513.8,3.59024]
[1744309227350,2.1508085,1513.9,1513.8,1.32194]
[1744309227549,3.4726585,1513.9,1513.8,1.32194]
[1744309227851,8.5e-06,1513.9,1513.8,1.32194]
[1744309228049,3.5248585,1513.9,1513.8,1.32194]
[1744309228259,1.32194,1513.8,1513.7,6.7981]
[1744309228555,3.52494,1513.8,1513.7,4.52983]
[1744309228747,2.203,1513.8,1513.7,4.52983]
[1744309228947,3.52494,1513.8,1513.7,4.52983]
[1744309229554,2.203,1513.8,1513.7,4.52983]
[1744309230352,8.5e-06,1513.9,1513.8,1.32194]
[1744309230552,1.3218585,1513.9,1513.8,1.32194]
[1744309230752,1.32194,1513.8,1513.7,4.52976]
[1744309230947,8.5e-06,1513.9,1513.8,1.32194]
[1744309231548,2.1438085,1513.9,1513.7,4.52975]
[1744309231845,2.1438085,1513.9,1513.8,1.32194]
[1744309232048,8.5e-06,1513.9,1513.8,3.39344]
[1744309234259,8.5e-06,1513.9,1513.8,14.38544]
[1744309235262,2.2027,1514.6,1514.5,1.32133]
[1744309235263,7.67398,1514.6,1514.5,1.32133]
[1744309235561,6.3527,1514.6,1514.5,1.32133]
[1744309235762,7.67394,1514.6,1514.5,1.32133]
[1744309236148,6.3527,1514.6,1514.4,2.1471]
[1744309236455,7.74140129,1514.7,1514.6,1.32124]
[1744309236853,7.74140129,1514.7,1514.6,8.46834]
[1744309237056,1.74999634,1514.8,1514.7,1.32115]
[1744309237250,12.8858213,1515.0,1514.9,1.32098]
[1744309237554,21.37523728,1515.8,1515.4,1.32047]
[1744309237555,2.2623,1515.6,1515.4,1.32047]
[1744309237754,2.2623,1515.6,1515.5,1.32046]
[1744309238156,7.2623,1515.6,1515.3,5.4266]
[1744309238375,1.32035,1515.7,1515.5,1.32043]
[1744309238555,1.3204,1515.6,1515.4,3.54921851]
[1744309238756,2.2623,1515.5,1515.4,3.54921851]
[1744309239057,15.53537043,1515.8,1515.7,1.32028]
[1744309239259,17.79767043,1515.8,1515.7,1.32028]
[1744309239562,15.53537043,1515.8,1515.7,1.32028]
[1744309239755,15.53537043,1515.8,1515.7,3.53908]
[1744309239950,15.55744659,1515.8,1515.7,3.53908]
[1744309241259,12.81066659,1515.8,1515.7,14.53108]
[1744309241456,12.81066659,1515.8,1515.7,16.74208]
[1744309241457,11.28546659,1515.8,1515.7,16.74208]
[1744309241661,3.32291457,1515.8,1515.7,16.74208]
[1744309241862,18.07468728,1515.9,1515.8,1.3202]
[1744309242058,18.07468728,1515.9,1515.8,17.08]
[1744309242263,18.07468728,1515.9,1515.8,22.08]
[1744309242660,16.72899728,1515.9,1515.8,22.08]
[1744309242967,13.42762127,1515.9,1515.8,22.08]
[1744309243663,2.1615,1516.3,1516.2,1.31985]
[1744309244057,2.2685,1516.7,1516.5,1.31956]
[1744309244264,2.1615,1516.6,1516.5,1.31959]
[1744309244456,2.1615,1516.6,1516.5,3.2078]
[1744309244660,7.1615,1516.6,1516.3,1.31972]
[1744309244861,2.1615,1516.6,1516.3,3.2078]
[1744309245159,4.52672,1517.3,1516.6,3.29876]
[1744309245364,3.48054,1517.2,1516.8,3.2078]
[1744309245668,3.4805,1517.2,1517.0,1.31912]
[1744309245862,2.1615,1517.2,1517.0,1.31912]
[1744309246162,13.66679,1517.2,1516.8,0.00990851]
[1744309246464,8.66679,1517.2,1516.8,0.00990851]
[1744309246664,5.3693,1517.2,1516.8,0.00990851]
[1744309246868,1.31922,1517.0,1516.8,0.00990851]
[1744309247059,3.57784,1516.9,1516.8,0.00990851]
[1744309247459,8.57784,1516.9,1516.8,0.00990851]
[1744309247858,10.69334,1516.9,1516.8,0.00990851]
[1744309249865,1.31941,1516.7,1516.6,3.2078]
[1744309250263,1.3195,1516.6,1516.4,3.4418]
[1744309250467,2.0541,1516.6,1516.5,1.31959]
[1744309250769,3.37363,1516.6,1516.4,3.44179]
[1744309250960,3.37363,1516.6,1516.4,3.45169851]
[1744309251260,1.31959,1516.5,1516.4,0.00990851]
[1744309251567,3.37369,1516.5,1516.4,0.00990851]
[1744309251766,8.37369,1516.5,1516.4,0.00990851]
[1744309252166,7.0541,1516.5,1516.1,3.2078]
[1744309252363,2.0541,1516.5,1516.1,3.2078]
[1744309252565,1.31985,1516.2,1516.1,4.52769]
[1744309252864,1.31981,1516.3,1516.2,1.31983]
[1744309253462,1.31978,1516.3,1516.2,1.3198]
[1744309253659,1.31979,1516.3,1516.2,1.3198]
[1744309254064,1.31979,1516.3,1516.2,1.31985]
[1744309254267,1.31979,1516.3,1516.2,3.39545]
[1744309254569,3.29897,1516.5,1516.2,3.39545]
[1744309254767,1.3198,1516.3,1516.2,3.39545]
[1744309255163,1.3198,1516.3,1516.2,2.0756]
[1744309255567,1.3198,1516.3,1516.2,3.39545]
[1744309257462,5.55857,1516.5,1516.2,3.39545]
[1744309257463,1.31973,1516.4,1516.3,1.31976]
[1744309257866,1.31976,1516.3,1516.2,2.0756]
[1744309258070,3.42816,1516.3,1516.2,2.0756]
[1744309258364,1.31985,1516.2,1516.1,0.00990851]
[1744309258570,3.52725,1516.2,1516.1,0.00990851]
[1744309259273,3.52725,1516.2,1516.1,1.32983851]
[1744309259274,2.2074,1516.2,1516.1,1.32983851]
[1744309259471,3.52725,1516.2,1516.1,4.53763851]
[1744309259774,3.52725,1516.2,1516.1,0.00990851]
[1744309259965,3.57835,1516.3,1516.1,3.21770851]
[1744309260165,1.31985,1516.2,1516.1,1.32975851]
[1744309260466,2.2585,1516.3,1516.2,1.31985]
[1744309260667,4.467,1516.5,1516.1,3.21770851]
[1744309260871,4.467,1516.5,1516.3,4.5275]
[1744309261169,2.2585,1516.6,1516.5,1.31959]
[1744309261363,0.00990851,1516.7,1516.6,1.3195]
[1744309261870,0.00990851,1516.7,1516.6,12.8575]
[1744309262473,6.538,1517.3,1516.6,12.8575]
[1744309262474,6.538,1517.3,1517.2,1.31898]
[1744309262667,1.31906,1517.1,1517.0,3.2078]
[1744309262870,1.31933,1516.8,1516.7,4.52717]
[1744309263373,1.31935,1516.8,1516.5,3.2078]
[1744309263563,1.31935,1516.8,1516.3,3.29941]
[1744309263564,2.1105,1517.0,1516.9,1.31924]
[1744309263765,2.1105,1517.0,1516.9,4.52704]
[1744309263976,0.00990851,1517.1,1517.0,1.31915]
[1744309264160,0.00990851,1517.1,1517.0,6.31915]
[1744309264362,8.51e-06,1517.1,1517.0,6.31915]
[1744309264873,8.51e-06,1517.1,1517.0,6.81404872]
[1744309267368,14.28394,1518.0,1517.7,1.31854]
[1744309267369,2.1142,1517.8,1517.7,1.31854]
[1744309267671,3.4327,1517.8,1517.6,4.52641]
[1744309267872,3.43269,1517.8,1517.6,4.5264]
[1744309268177,1.31854,1517.7,1517.6,3.2078]
[1744309268470,4.4512,1518.0,1517.6,3.2078]
[1744309268677,1.31846,1517.8,1517.6,4.52638]
[1744309268871,6.5654,1518.0,1517.6,3.2078]
[1744309269081,1.31854,1517.7,1517.6,3.2078]
[1744309269471,11.536,1517.7,1516.7,3.2078]
[1744309269671,3.2078,1517.2,1517.0,1.31912]
[1744309269873,4.52681,1517.2,1516.9,1.3192]
[1744309270173,3.2078,1517.0,1516.6,2.0772]
[1744309270481,1.31944,1516.7,1516.4,3.2078]
[1744309270680,1.31944,1516.7,1516.5,1.31955]
[1744309270873,1.32933851,1516.7,1516.5,1.31954]
[1744309271072,1.32933851,1516.7,1516.6,1.3195]
[1744309271272,3.51773851,1516.7,1516.5,1.31955]
[1744309271676,2.19830851,1516.7,1516.4,0.00990851]
[1744309271880,1.31959,1516.5,1516.4,0.00990851]
[1744309272378,8.50799,1516.5,1516.4,0.00990851]
[1744309272577,3.50799,1516.5,1516.4,0.00990851]
[1744309272785,10.68369,1516.5,1516.4,0.00990851]
[1744309273481,1.31976,1516.3,1516.2,10.12035217]
[1744309273681,4.52756,1516.3,1516.2,10.12035217]
[1744309273983,9.52756,1516.3,1516.2,10.12035217]
[1744309274179,3.47536,1516.3,1516.2,10.12035217]
[1744309274482,2.06930851,1516.7,1516.2,15.12035217]
[1744309274684,1.3197,1516.4,1516.2,13.67182217]
[1744309274878,1.3197,1516.4,1516.3,1.31976]
[1744309275083,2.1556,1516.6,1516.5,1.31959]
[1744309275281,1.31954,1516.6,1516.2,15.65167217]
[1744309275480,0.00990851,1516.7,1516.4,1.31961]
[1744309275782,3.47516,1516.6,1516.5,2.2317]
[1744309275985,1.32936851,1516.7,1516.5,3.55122]
[1744309276183,1.3195,1516.6,1516.5,2.2317]
[1744309276374,0.00990851,1516.7,1516.6,1.3195]
[1744309276774,0.00990851,1516.7,1516.6,6.3195]
[1744309277987,0.00990851,1516.7,1516.6,8.433]
[1744309278190,0.00990851,1516.7,1516.6,8.94690504]
[1744309279184,0.00990851,1516.7,1516.6,1.3195]
[1744309279687,1.3195,1516.6,1516.5,3.55122]
[1744309279989,0.00990851,1516.7,1516.6,1.3195]
[1744309280891,0.00990851,1516.7,1516.5,3.55124]
[1744309281082,1.3195,1516.6,1516.5,3.55124]
[1744309281279,0.00990851,1516.7,1516.5,2.2317]
[1744309281490,0.00990851,1516.7,1516.5,3.55124]
[1744309281692,0.00990851,1516.7,1516.6,1.3195]
[1744309282191,0.00990851,1516.7,1516.5,2.2317]
[1744309282393,1.3195,1516.6,1516.5,2.2317]
[1744309282585,1.31959,1516.5,1516.3,3.2078]
[1744309282790,1.31985,1516.2,1516.1,0.00990851]
[1744309282987,1.31985,1516.2,1516.1,1.32983851]
[1744309283188,5.2592,1516.4,1516.1,1.32977851]
[1744309283393,1.31985,1516.2,1516.1,0.00990851]
[1744309283691,4.52765,1516.2,1516.1,0.00990851]
[1744309283895,9.52765,1516.2,1516.1,0.00990851]
[1744309284303,11.57905,1516.2,1516.1,0.00990851]
[1744309285493,16.85859,1516.2,1515.7,10.12035217]
[1744309285698,1.3202,1515.8,1515.7,12.25105217]
[1744309285895,1.3202,1515.8,1515.7,10.12035217]
[1744309286299,2.2126,1515.9,1515.7,10.12035217]
[1744309286501,3.53274,1515.9,1515.8,1.3202]
[1744309286702,3.53274,1515.9,1515.8,2.1307]
[1744309286908,1.3202,1515.8,1515.7,10.12035217]
[1744309287210,3.5328,1515.8,1515.7,10.12035217]
[1744309287501,3.21770851,1516.0,1515.7,10.12035217]
[1744309287697,4.528,1515.8,1515.7,10.12035217]
[1744309288095,11.792,1515.8,1515.7,10.12035217]
[1744309288294,11.792,1515.8,1515.6,8.51e-06]
[1744309288295,1.32028,1515.7,1515.6,8.51e-06]
[1744309288497,12.12248,1515.7,1515.6,8.51e-06]
[1744309288695,17.12248,1515.7,1515.6,8.51e-06]
[1744309289093,12.12248,1515.7,1515.6,8.51e-06]
[1744309290001,5.58548,1515.7,1515.6,8.51e-06]
[1744309291005,3.37178,1515.7,1515.6,8.51e-06]
[1744309292208,8.37178,1515.7,1515.6,8.51e-06]
[1744309292999,14.89778,1515.7,1515.6,8.51e-06]
[1744309293698,8.37178,1515.7,1515.6,8.51e-06]
[1744309294201,3.37178,1515.7,1515.6,8.51e-06]
[1744309295207,1.32028,1515.7,1515.6,1.32037851]
[1744309295407,1.32028,1515.7,1515.6,8.51e-06]
[1744309295707,3.48048,1515.7,1515.6,8.51e-06]
[1744309296901,3.48048,1515.7,1515.6,1.32037851]
[1744309297309,3.48048,1515.7,1515.6,8.51e-06]
[1744309297803,1.32028,1515.7,1515.6,8.51e-06]
[1744309298006,1.32028,1515.7,1515.6,1.32037851]
[1744309299209,1.32028,1515.7,1515.6,8.51e-06]
[1744309299507,1.32013,1515.9,1515.8,1.32013]
[1744309299803,1.3202,1515.8,1515.7,3.5044]
[1744309300000,0.00990851,1516.0,1515.7,2.1842]
[1744309300201,1.32018,1515.9,1515.8,1.32018]
[1744309300508,5.35372851,1516.0,1515.9,1.32011]
[1744309300509,1.32999851,1516.0,1515.9,1.32011]
[1744309300708,0.00990851,1516.0,1515.9,1.32011]
[1744309300911,1.32992851,1516.0,1515.9,1.32011]
[1744309301208,1.32992851,1516.0,1515.8,1.32012]
[1744309301209,0.00990851,1516.0,1515.8,1.32012]
[1744309301408,1.32015,1515.9,1515.8,1.32012]
[1744309301609,1.32026,1515.8,1515.7,1.32023]
[1744309302211,1.32028,1515.7,1515.6,8.51e-06]
[1744309302511,1.32028,1515.7,1515.6,1.32037851]
[1744309302710,1.32028,1515.7,1515.6,8.51e-06]
[1744309302904,3.57728,1515.7,1515.6,8.51e-06]
[1744309304605,8.57728,1515.7,1515.6,8.51e-06]
[1744309305013,3.57728,1515.7,1515.6,8.51e-06]
[1744309305208,3.57728,1515.7,1515.6,1.32037851]
[1744309305509,3.57728,1515.7,1515.6,8.51e-06]
[1744309305715,1.32017,1515.9,1515.8,1.32011]
[1744309305904,1.32017,1515.9,1515.6,8.20780851]
[1744309305905,5.39470851,1516.0,1515.9,1.32011]
[1744309306105,0.00990851,1516.0,1515.6,5.44797851]
[1744309306412,0.00990851,1516.0,1515.9,1.32011]
[1744309307213,0.00990851,1516.0,1515.9,9.52791]
[1744309308413,1.31963,1516.5,1516.4,1.31967]
[1744309308713,1.3197,1516.4,1516.3,1.3197]
[1744309309207,3.2078,1516.5,1516.1,2.2197]
[1744309309411,1.31985,1516.2,1516.1,2.2197]
[1744309309607,6.50725,1516.3,1515.8,2.2197]
[1744309309914,1.32011,1515.9,1515.8,3.53983]
[1744309310214,1.31996,1516.1,1516.0,1.31993]
[1744309310716,1.32,1516.1,1516.0,1.32]
[1744309311010,1.32001,1516.1,1516.0,1.32001]
[1744309311515,1.32006,1516.0,1515.9,1.32006]
[1744309311714,1.31999,1516.1,1516.0,1.31998]
[1744309313113,1.31991,1516.2,1516.1,1.3199]
[1744309313911,5.4357,1516.3,1516.1,1.3199]
[1744309314116,1.31976,1516.3,1516.2,1.31985]
[1744309314519,8.62800851,1516.5,1516.0,3.29988]
[1744309314712,1.31982,1516.3,1516.2,1.3198]
[1744309315111,1.31979,1516.3,1516.2,1.31977]
[1744309315307,5.32900851,1516.5,1516.1,2.107]
[1744309315513,1.31972,1516.4,1516.3,1.3197]
[1744309315815,4.53733851,1516.5,1516.4,1.31967]
[1744309316716,0.00990851,1516.5,1516.4,1.31967]
[1744309317209,1.31967,1516.4,1516.3,3.46309]
[1744309317407,1.31967,1516.4,1516.3,2.1434]
[1744309317810,1.31976,1516.3,1516.2,1.31979]
[1744309318017,1.31971,1516.4,1516.3,1.3197]
[1744309318208,1.31967,1516.4,1516.3,1.3197]
[1744309319624,1.31979,1516.3,1516.2,1.31979]
[1744309320023,3.56254,1516.4,1516.3,1.31976]
[1744309320221,1.31979,1516.3,1516.2,1.31979]
[1744309320419,2.2428,1516.4,1516.0,2.1434]